{"text_format":"1","workbook":"xlsx","n_sheets":6,"sheets":["支援対象一覧","基本情報","雛形1","雛形2","雛形3","選択肢"],"not_rendered":{"charts":0,"images":0,"macros":1,"external_links":3,"defined_names":17,"comments":3,"pivot_tables":0},"unopened":[],"bounds":{"document_bytes":16777216,"sheet_cells":100000,"rows_first":2000,"rows_last":500,"rows_between":2000,"halvings":0,"cell_chars":16384,"cell_head_chars":4096},"cells_cut":0,"cells_raw":0,"read":"whole","date_system":"1900"}

{"sheet":"支援対象一覧","index":0,"n_rows":36,"n_cols":10,"rows_kept":36,"cut":false,"hidden":false,"merged":[[2,0,11,0],[12,0,33,0]]}
["支援対象となる費用"]
["請求の種類と費目","A：PCT出願に関する費用","B：国際段階に関する費用","C：指定国移行に関する費用","D：各国の審査に関する費用","E：特許査定に関する費用 ※","G：(ﾊﾟﾘﾙｰﾄ等)出願に関する費用","その他支援対象となる費用",null,"支援対象外の費用　"]
["立替金等\n（消費税無し)\n※課税対象ではない費用","調査手数料(印紙)","予備審査請求（印紙)","国内移行手数料(印紙)","審査請求料(印紙)","特許料・登録料納付(印紙)","出願手数料(各国特許庁費用)","優先権証明願(印紙代)",null,"特許維持年金、その他特許登録料が納付された後の費用　※1"]
[null,"送付手数料(印紙)","取扱手数料(WIPO)",null,null,null,null,"優先権主張に関する手数料",null,"引用例の翻訳費用"]
[null,"追加調査手数料（印紙) (2発明分)","予備審査の追加手数料(印紙)",null,null,null,null,"寄託に関する費用(実費)",null,"国際出願手数料(WIPOへの支払い分)"]
[null,null,"文献の写しの請求費用(印紙)",null,null,null,null,"寄託に関する費用(手数料)",null,"PCT出願段階での翻訳"]
[null,null,null,null,null,null,null,"新規性喪失例外に関する費用",null,"日本語以外の言語から日本語への明細書の翻訳（ただし中国語→日本語、韓国語→日本語は支援対象）"]
[null,null,null,null,null,null,null,"方式補正、手続補正、追完に関する費用",null,"引用文献や現地代理人からのレターの日本語への翻訳"]
[null,null,null,null,null,null,null,"上申書提出に関する費用",null,"特許事務所変更に係る費用"]
[null,null,null,null,null,null,null,"技術検討料",null,"特許登録報酬（成功謝金)"]
[null,null,null,null,null,null,null,"公証、認証等（実費)",null,"緊急料、特急料金等、期間延長に関する費用（ただし、宣誓書の提出に関する期間延長については、庁指示による場合や不可抗力により発明者の署名が集まらない場合は認める）"]
[null,"■PCT非加盟国の出願費用は「C」を参照","■予備審査請求に係る費用は、持分にかかわらず100%支援対象",null,null,null,null,"公証、認証等の事務手数料",null,"書誌的事項の軽微な修正(あて名、発明の名称、住所変更等）"]
["手数料等\n（消費税有)\n※課税対象となる費用","PCT出願手数料(日本語)","１９条補正に関する手数料","国内移行手数料","審査請求、管理(手数料)","特許料・登録料納付管理手数料","請求項作成手数料","譲渡、宣誓書、委任状提出に関する費用　",null,"異議申し立て"]
[null,"請求項作成手数料","３４条補正に関する手数料","翻訳(英語)(上限100万＝案件あたりの合計額)","出願維持年金納付管理手数料",null,"明細書作成手数料","印書代、タイプ代（電子化手数料）",null,"文献、公報（引例）取り寄せ手数料\n(例外支援案件：IDSに関する費用）"]
[null,"明細書作成手数料","答弁書作成手数料","翻訳(英語以外)(上限100万＝案件あたりの合計額)","意見書、補正書作成費用","現地代理人費用","図面作成手数料","書類作成、調整費用",null,"指定取り下げ"]
[null,"図面作成手数料","陳述書の提出に関する手数料","情報開示陳述書に関する費用","拒絶理由対応費用","現地代理人への指示費用","要約書作成手数料","電子出願による手数料",null,"名義変更"]
[null,"要約書作成手数料","国際調査報告対応費用",null,"現地代理人費用",null,"配列表作成手数料","事務手数料",null,"先行技術調査"]
[null,"配列表作成手数料","予備審査手数料","請求項作成手数料","現地代理人への指示費用","翻訳(英語)(上限100万)","磁気ディスク提出手数料","　・管理料、報告料、その他手数料等",null,"交通費、日当"]
[null,"磁気ディスク提出手数料","割増、加算等","明細書作成手数料",null,"翻訳(英語以外)(上限100万)","割増、加算等","事務的経費　",null,"分割出願に関する費用　※2"]
[null,"割増、加算等",null,"図面作成手数料","翻訳(英語)(上限100万)",null,"電子出願による手数料","　・コピー、複写代",null,"継続審査請求（RCE）に関する費用　※2"]
[null,null,null,"要約書作成手数料","翻訳(英語以外)(上限100万)",null,null,"　・郵送料",null,"一部継続出願に関する費用　※2"]
[null,null,null,"配列表作成手数料","情報開示陳述書(IDS)に関する費用",null,"翻訳(英語)(上限100万)","　・通信費、FAX",null,"審判請求に関する費用　※2"]
[null,null,null,"割増、加算等",null,null,"翻訳(英語以外)(上限100万)","　・振込、送金手数料",null,"PCTより国内移行時の「寄託」に関する手続き補足書（受託証の写し）の提出に関する費用"]
[null,null,null,null,null,null,"情報開示陳述書(IDS)に関する費用","　・小切手等",null,"AFCPに関する費用"]
[null,null,null,"現地代理人費用",null,null,null,"放棄手数料（アドバイザリ通知後の放棄を除く）",null,"EPでの追加調査（単一性違反の場合）に関する費用"]
[null,null,null,"現地代理人への指示費用",null,null,null,"口頭審理、面接に関する費用（交通費を除く）",null,"EPから指定国への移行における特許維持年金支払いに関する費用"]
[null,null,null,null,null,null,null,"特許審査ハイウェイなど海外の早期審査に関わる費用（過去採択分を含む）",null,"請求項に関する追加料金　※3"]
[null,null,null,null,null,null,null,null,null,"共同出願手数料"]
[]
[]
[]
[null,null,null,null,null,null,null,null,null,"※1　整理番号がS2006以前の採択案件を除く。"]
[null,null,null,null,null,null,null,null,null,"※2　H26年度以前に別途、当該費用の支援に関する契約を締結している場合を除く。"]
[null,null,"■予備審査請求に係る費用は、持分にかかわらず100%支援対象",null,null,null,null,null,null,"※3　H28年度採択案件より適用。ただし、16クレーム以上にかかるクレーム追加料金(EP)はH27年度以前の採択であっても支援対象外。"]
[]
[null,null,null,null,null,null,null,null,null,"大学等知財基盤強化支援制度（権利化支援）1604XX"]

{"sheet":"基本情報","index":1,"n_rows":63,"n_cols":9,"rows_kept":63,"cut":false,"hidden":false,"merged":[]}
["特許出願支援に関する精算請求書　　基本情報"]
["■請求機関の情報",null,null,"■請求履歴"]
["機関名",null,null,"請求回数","請求日","様式追加対象"]
["部署名",null,null,1,null,null,false,null,true]
["請求者氏名(契約代表者)",null,null,2,null,null,false]
["機関所在地",null,null,3,null,null,false]
[null,null,null,4]
["■発明の情報",null,null,5]
["出願別整理番号",null,null,6]
["発明の名称",null,null,7]
["出願人",null,null,8]
["請求機関の費用負担割合",null,null,9]
[null,null,null,10]
["■銀行の情報",null,null,11]
["振込銀行名",null,null,12]
["支店名",null,null,13]
["銀行コード",null,null,14]
["支店コード",null,null,15]
["口座名",null,null,16]
["口座名ふりがな",null,null,17]
["預金口座　(7桁で記入)",null,null,18]
[null,null,null,19]
["■請求担当者の情報",null,null,20]
["担当者氏名",null,null,21]
["担当者ふりがな",null,null,22]
["連絡先(TEL)",null,null,23]
["連絡先(FAX)",null,null,24]
["連絡先(E-mail)",null,null,25]
[null,null,null,26]
["■権利化の進展状況","(※各項目が確定したら、順次入力して下さい。)",null,27]
["出願日(各国移行日)",null,null,28]
["出願番号",null,null,29]
["審査請求日",null,null,30,null,null,false]
["特許登録日",null,null,31,null,null,false]
["特許登録番号",null,null,32,null,null,false]
["拒絶査定/特許査定日",null,null,33,null,null,false]
["特許事務所(日本）",null,null,34,null,null,false]
[null,null,null,35,null,null,false]
[null,null,null,36,null,null,false]
[null,null,null,37,null,null,false]
[null,null,null,38,null,null,false]
[null,null,null,39,null,null,false]
[null,null,null,40,null,null,false]
[null,null,null,41,null,null,false]
[null,null,null,42,null,null,false]
[null,null,null,43,null,null,false]
[null,null,null,44,null,null,false]
[null,null,null,45,null,null,false]
[null,null,null,46,null,null,false]
[null,null,null,47,null,null,false]
[null,null,null,48,null,null,false]
[null,null,null,49,null,null,false]
[null,null,null,50,null,null,false]
[null,null,null,51]
[null,null,null,52]
[null,null,null,53,null,null,false]
[null,null,null,54,null,null,false]
[null,null,null,55,null,null,false]
[null,null,null,56,null,null,false]
[null,null,null,57,null,null,false]
[null,null,null,58,null,null,false]
[null,null,null,59,null,null,false]
[null,null,null,60,null,null,false]

{"sheet":"雛形1","index":2,"n_rows":34,"n_cols":7,"rows_kept":34,"cut":false,"hidden":true,"merged":[[2,5,2,6],[3,5,3,6],[6,1,6,6],[7,1,7,6],[8,1,8,6],[20,1,20,5],[10,1,10,6],[9,1,9,5],[18,1,18,5],[15,1,15,6],[33,0,35,0],[33,1,35,6],[25,2,25,4],[13,1,13,6],[12,1,12,6],[30,1,30,6],[31,1,31,6],[27,1,27,6],[29,1,29,6],[28,1,28,6],[24,1,24,6],[14,1,14,6],[21,1,21,4],[22,1,22,4],[23,1,23,6],[19,1,19,5]]}
["（様式１）",null,null,null,null,null,"220401"]
["国立研究開発法人科学技術振興機構　殿"]
[null,null,null,null,null,"JST使用欄(管理番号)"]
[null,"特許出願支援に関する精算請求書"]
[]
[]
["請求日"]
["機関名"]
["部署名"]
["請求者氏名\n(契約代表者)"]
["機関所在地"]
[]
["出願別整理番号"]
["申請書に記載の\n発明の名称"]
["出願人"]
["請求機関の\n費用負担割合"]
[]
["請求回数","第",null,"回目"]
["特許事務所請求書",null,null,null,null,null,"（内訳別紙）"]
["消費税"]
["請求額"]
["振込銀行名",null,null,null,null,"銀行コード"]
["支店名",null,null,null,null,"支店コード"]
["口座名"]
["ふりがな"]
["預金口座","普通　No",null,null,null,null,"(７桁でご記入ください)"]
[]
["ふりがな"]
["担当者氏名"]
["連絡先(TEL)"]
["連絡先(FAX)"]
["連絡先(E-mail)"]
[]
["備考欄"]

{"sheet":"雛形2","index":3,"n_rows":33,"n_cols":9,"rows_kept":33,"cut":false,"hidden":true,"merged":[[24,1,24,2],[25,1,25,2],[31,4,31,6],[26,1,26,2],[27,1,27,2],[28,1,28,2],[29,1,29,2],[31,0,31,3],[30,0,30,3],[22,1,22,2],[23,1,23,2],[7,0,7,1],[4,5,4,6],[5,0,5,1],[5,2,5,3],[5,5,5,6],[14,1,14,2],[7,5,7,6],[10,5,10,6],[21,1,21,2],[12,2,12,3],[11,0,11,1],[4,0,4,1],[4,2,4,3],[15,1,15,2],[16,1,16,2],[17,1,17,2],[18,1,18,2],[12,0,12,1],[10,0,10,1],[10,2,10,3],[11,2,11,3],[19,1,19,2],[20,1,20,2],[11,5,11,6],[12,5,12,6],[7,2,7,3]]}
["（様式２）特許出願支援に関する精算請求書[科目内訳] (単位：円)",null,null,null,null,null,220401]
[]
[]
[]
["出願別整理番号",null,null,null,"請求日"]
["前回までの請求累計",null,null,null,"請求回数"]
[]
["請求の種類",null,null,null,"特許事務所名"]
[]
["権利化進展情報  ※確定していない日付けは、「1900年1月0日」のままで構いません。"]
["出願日(各国移行日)",null,null,null,"請求項数"]
["審査請求日",null,null,null,"出願番号"]
["登録日（特許査定日）",null,null,null,"特許登録番号"]
[]
["No","費目",null,"科目\n（特許事務所請求書）","手数料\n(消費税有)","立替金\n(消費税無)","備考\n(特許事務所請求書No等)","費目IDの設定","消費税合計"]
[1,null,null,null,null,null,null,{"$f":"IF(ISERROR(VLOOKUP($B16,選択肢!$H$2:$I$75,2,0)),\"\",VLOOKUP($B16,選択肢!$H$2:$I$76,2,0))","v":""},{"$f":"SUMIF($B$16:$C$30,\"消費税\",$E$16:$E$30)","v":0}]
[2,null,null,null,null,null,null,{"$f":"IF(ISERROR(VLOOKUP($B17,選択肢!$H$2:$I$75,2,0)),\"\",VLOOKUP($B17,選択肢!$H$2:$I$76,2,0))","v":""},"支払金額"]
[3,null,null,null,null,null,null,{"$f":"IF(ISERROR(VLOOKUP($B18,選択肢!$H$2:$I$75,2,0)),\"\",VLOOKUP($B18,選択肢!$H$2:$I$76,2,0))","v":""},{"$f":"$E$32-$I$16","v":0}]
[4,null,null,null,null,null,null,{"$f":"IF(ISERROR(VLOOKUP($B19,選択肢!$H$2:$I$75,2,0)),\"\",VLOOKUP($B19,選択肢!$H$2:$I$76,2,0))","v":""}]
[5,null,null,null,null,null,null,{"$f":"IF(ISERROR(VLOOKUP($B20,選択肢!$H$2:$I$75,2,0)),\"\",VLOOKUP($B20,選択肢!$H$2:$I$76,2,0))","v":""}]
[6,null,null,null,null,null,null,{"$f":"IF(ISERROR(VLOOKUP($B21,選択肢!$H$2:$I$75,2,0)),\"\",VLOOKUP($B21,選択肢!$H$2:$I$76,2,0))","v":""}]
[7,null,null,null,null,null,null,{"$f":"IF(ISERROR(VLOOKUP($B22,選択肢!$H$2:$I$75,2,0)),\"\",VLOOKUP($B22,選択肢!$H$2:$I$76,2,0))","v":""}]
[8,null,null,null,null,null,null,{"$f":"IF(ISERROR(VLOOKUP($B23,選択肢!$H$2:$I$75,2,0)),\"\",VLOOKUP($B23,選択肢!$H$2:$I$76,2,0))","v":""}]
[9,null,null,null,null,null,null,{"$f":"IF(ISERROR(VLOOKUP($B24,選択肢!$H$2:$I$75,2,0)),\"\",VLOOKUP($B24,選択肢!$H$2:$I$76,2,0))","v":""}]
[10,null,null,null,null,null,null,{"$f":"IF(ISERROR(VLOOKUP($B25,選択肢!$H$2:$I$75,2,0)),\"\",VLOOKUP($B25,選択肢!$H$2:$I$76,2,0))","v":""}]
[11,null,null,null,null,null,null,{"$f":"IF(ISERROR(VLOOKUP($B26,選択肢!$H$2:$I$75,2,0)),\"\",VLOOKUP($B26,選択肢!$H$2:$I$76,2,0))","v":""}]
[12,null,null,null,null,null,null,{"$f":"IF(ISERROR(VLOOKUP($B27,選択肢!$H$2:$I$75,2,0)),\"\",VLOOKUP($B27,選択肢!$H$2:$I$76,2,0))","v":""}]
[13,null,null,null,null,null,null,{"$f":"IF(ISERROR(VLOOKUP($B28,選択肢!$H$2:$I$75,2,0)),\"\",VLOOKUP($B28,選択肢!$H$2:$I$76,2,0))","v":""}]
[14,null,null,null,null,null,null,{"$f":"IF(ISERROR(VLOOKUP($B29,選択肢!$H$2:$I$75,2,0)),\"\",VLOOKUP($B29,選択肢!$H$2:$I$76,2,0))","v":""}]
[15,null,null,null,null,null,null,{"$f":"IF(ISERROR(VLOOKUP($B30,選択肢!$H$2:$I$75,2,0)),\"\",VLOOKUP($B30,選択肢!$H$2:$I$76,2,0))","v":""}]
["小計",null,null,null,{"$f":"SUM(E16:E30)","v":0},{"$f":"SUM(F16:F30)","v":0}]
["合計",null,null,null,{"$f":"E31+F31","v":0}]
["【JST使用欄】"]

{"sheet":"雛形3","index":4,"n_rows":30,"n_cols":7,"rows_kept":30,"cut":false,"hidden":true,"merged":[[9,2,9,5],[14,0,14,2],[17,0,17,5],[25,0,25,2],[27,0,27,2],[3,0,3,1],[4,0,4,1],[5,0,5,1],[3,4,3,5],[4,4,4,5],[5,4,5,5]]}
["（様式３）特許出願支援に関する精算請求書[現地代理人費用計算書] (単位：円)",null,null,null,null,220401]
[]
[]
["出願別整理番号",null,null,"請求日"]
["特許事務所名",null,null,"現地代理人事務所名"]
["請求項数",null,null,"レート(数値のみ)"]
[]
[]
[]
["【現地代理人費用の内訳】",null,"現地代理人費用を特許庁費用(Official fee)をそれ以外にわけて記入下さい。\n費用負担(持分)を考慮した金額を入力してください。"]
["No","費目","科目","現地通貨(数値のみ)\n[持分を考慮した値]","日本円\n[持分を考慮した値]","備考"]
[1,"特許庁費用","－",null,null,"official fee",{"$f":"IF(ISERROR(VLOOKUP($B12,選択肢!$L$1:$M$4,2,FALSE)),\"\",VLOOKUP($B12,選択肢!$L$1:$M$4,2,FALSE))","v":"O1100"}]
[2,"特許事務所手数料","－",null,null,"Attorney's fee等",{"$f":"IF(ISERROR(VLOOKUP($B13,選択肢!$L$1:$M$4,2,FALSE)),\"\",VLOOKUP($B13,選択肢!$L$1:$M$4,2,FALSE))","v":"O1101"}]
[3,null,null,null,null,null,{"$f":"IF(ISERROR(VLOOKUP($B14,選択肢!$L$1:$M$4,2,FALSE)),\"\",VLOOKUP($B14,選択肢!$L$1:$M$4,2,FALSE))","v":""}]
["現地代理人費用合計",null,null,{"$f":"SUM(D12:D13)","v":0},{"$f":"SUM(E12:E13)","v":0},null,{"$f":"IF(ISERROR(VLOOKUP($B15,選択肢!$L$1:$M$4,2,FALSE)),\"\",VLOOKUP($B15,選択肢!$L$1:$M$4,2,FALSE))","v":""}]
[null,null,null,null,null,null,{"$f":"IF(ISERROR(VLOOKUP($B16,選択肢!$L$1:$M$4,2,FALSE)),\"\",VLOOKUP($B16,選択肢!$L$1:$M$4,2,FALSE))","v":""}]
[null,null,null,null,null,null,{"$f":"IF(ISERROR(VLOOKUP($B17,選択肢!$L$1:$M$4,2,FALSE)),\"\",VLOOKUP($B17,選択肢!$L$1:$M$4,2,FALSE))","v":""}]
["【内：対象外費用】 分割出願、継続出願、一部継続出願、継続審査請求、異議申し立て、審判請求等は支援対象外です。",null,null,null,null,null,{"$f":"IF(ISERROR(VLOOKUP($B18,選択肢!$L$1:$M$4,2,FALSE)),\"\",VLOOKUP($B18,選択肢!$L$1:$M$4,2,FALSE))","v":""}]
["No","費目","科目","現地通貨","日本円","備考",{"$f":"IF(ISERROR(VLOOKUP($B19,選択肢!$L$1:$M$4,2,FALSE)),\"\",VLOOKUP($B19,選択肢!$L$1:$M$4,2,FALSE))","v":""}]
[1,"EPの追加クレーム料",null,null,null,"Claims fee for the 16th and each subsequent claim",{"$f":"IF(ISERROR(VLOOKUP($B20,選択肢!$N$1:$O$6,2,FALSE)),\"\",VLOOKUP($B20,選択肢!$N$1:$O$6,2,FALSE))","v":"Z0007"}]
[2,"期間延長費用",null,null,null,"Patent Extension of Time Fees ",{"$f":"IF(ISERROR(VLOOKUP($B21,選択肢!$N$1:$O$6,2,FALSE)),\"\",VLOOKUP($B21,選択肢!$N$1:$O$6,2,FALSE))","v":"Z0003"}]
[3,"書誌的事項補正(住所、名前等の軽微な補正)",null,null,null,null,{"$f":"IF(ISERROR(VLOOKUP($B22,選択肢!$N$1:$O$6,2,FALSE)),\"\",VLOOKUP($B22,選択肢!$N$1:$O$6,2,FALSE))","v":"Z0004"}]
[4,"分割出願、継続審査請求、一部継続出願,審判請求等",null,null,null,"Divisional application\nRCE,CIP,Appeal",{"$f":"IF(ISERROR(VLOOKUP($B23,選択肢!$N$1:$O$6,2,FALSE)),\"\",VLOOKUP($B23,選択肢!$N$1:$O$6,2,FALSE))","v":"Z0005"}]
[5,"成功報酬、謝金等",null,null,null,null,{"$f":"IF(ISERROR(VLOOKUP($B24,選択肢!$N$1:$O$6,2,FALSE)),\"\",VLOOKUP($B24,選択肢!$N$1:$O$6,2,FALSE))","v":"Z9998"}]
[6,"その他",null,null,null,null,{"$f":"IF(ISERROR(VLOOKUP($B25,選択肢!$N$1:$O$6,2,FALSE)),\"\",VLOOKUP($B25,選択肢!$N$1:$O$6,2,FALSE))","v":"Z9999"}]
["対象外費用合計",null,null,{"$f":"SUM(D20:D25)","v":0},{"$f":"SUM(E20:E25)","v":0},null,{"$f":"IF(ISERROR(VLOOKUP($B26,選択肢!$L$1:$M$4,2,FALSE)),\"\",VLOOKUP($B26,選択肢!$L$1:$M$4,2,FALSE))","v":""}]
[]
["支援対象費用",null,null,{"$f":"D15-D26","v":0},{"$f":"E15-E26","v":0}]
[]
["【JST使用欄】"]

{"sheet":"選択肢","index":5,"n_rows":76,"n_cols":16,"rows_kept":76,"cut":false,"hidden":true,"merged":[]}
["A_PCT出願に関する費用","B_国際段階に関する費用","C_指定国移行に関する費用","D_審査に関する費用","E_特許査定に関する費用","G_出願に関する費用",null,"費目名","費目ID",null,"C_出願(移行)費用","特許庁費用","O1100","EPの追加クレーム料","Z0007","出願(移行）に関する費用"]
["調査手数料(印紙代)","予備審査請求（印紙代)","国内移行手数料(印紙代)","審査請求料(印紙代)","特許料納付（年金)(印紙代)","出願手数料(印紙代)",null,"国際出願手数料(WIPO)","A1001",null,"D_審査対応費用","特許事務所手数料","O1101","期間延長費用","Z0003","審査請求に関す費用"]
["送付手数料(印紙代)","取扱手数料(WIPO)","－－－－－－－－－－－－－－－","－－－－－－－－－－－－－－－","－－－－－－－－－－－－－－－","－－－－－－－－－－－－－－－",null,"調査手数料(印紙代)","A1002",null,"F_中間費用","事務的経費","M7001","書誌的事項補正(住所、名前等の軽微な補正)","Z0004","各種指令応答に関する費用"]
["追加調査手数料（印紙代)","予備審査の追加手数料(印紙代)","国内移行手数料","審査請求、管理(手数料)","特許料納付（年金)手数料","請求項作成手数料",null,"送付手数料(印紙代)","A1003",null,"E_特許査定","その他","Z9999","成功報酬、謝金等","Z9998","拒絶理由通知に関する費用"]
["－－－－－－－－－－－－－－－","追加調査手数料（印紙代)","翻訳(英語：上限100万円)","維持年金納付管理手数料","－－－－－－－－－－－－－－－","明細書作成手数料",null,"優先権証明願(印紙代)","A1004",null,"Z_その他",null,null,"その他","Z9999","特許査定に関する費用"]
["PCT出願手数料(日本語)","文献の写しの請求費用(印紙代)","翻訳(英語以外：上限100万円)","意見書、補正書作成費用","現地代理人費用","図面作成手数料",null,"追加調査手数料（印紙代)","A1005",null,null,null,null,"分割出願、継続審査請求、一部継続出願,審判請求等","Z0005"]
["請求項作成手数料","－－－－－－－－－－－－－－－","情報開示陳述書(IDS)に関する手数料","－－－－－－－－－－－－－－－","現地代理人への指示（指令応答などの)手数料","要約書作成手数料",null,"オンラインによる減額","A1999"]
["明細書作成手数料","１９条補正に関する手数料","－－－－－－－－－－－－－－－","現地代理人費用","－－－－－－－－－－－－－－－","配列表作成手数料",null,"PCT出願手数料(日本語)","A7001"]
["図面作成手数料","３４条補正に関する手数料","請求項作成手数料","現地代理人への指示（指令応答などの)手数料","翻訳(英語：上限100万円)","磁気ディスク提出手数料",null,"請求項作成手数料","A7002"]
["要約書作成手数料","答弁書作成手数料","明細書作成手数料","－－－－－－－－－－－－－－－","翻訳(英語以外：上限100万円)","割増、加算等",null,"明細書作成手数料","A7003"]
["配列表作成手数料","陳述書の提出に関する手数料","図面作成手数料","翻訳(英語：上限100万円)","－－－－－－－－－－－－－－－","－－－－－－－－－－－－－－－",null,"図面作成手数料","A7004"]
["電子出願による手数料","国際調査報告対応費用","要約書作成手数料","翻訳(英語以外：上限100万円)","優先権証明願(印紙代)","現地代理人費用",null,"要約書作成手数料","A7005"]
["磁気ディスク提出手数料","国際予備審査手数料","配列表作成手数料","情報開示陳述書(IDS)に関する手数料","優先権主張に関する手数料","現地代理人への指示（指令応答などの)手数料",null,"配列表作成手数料","A7006"]
["割増、加算等","割増、加算等","割増、加算等","－－－－－－－－－－－－－－－","寄託に関する費用(実費)","－－－－－－－－－－－－－－－",null,"電子出願による手数料","A7007"]
["－－－－－－－－－－－－－－－","－－－－－－－－－－－－－－－","－－－－－－－－－－－－－－－","国内移行手数料(印紙代)","寄託に関する費用(手数料)","翻訳(英語：上限100万円)",null,"優先権主張に関する手数料","A7008"]
["優先権証明願(印紙代)","優先権証明願(印紙代)","現地代理人費用","国内移行手数料","新規性喪失例外に関する手数料","翻訳(英語以外：上限100万円)",null,"磁気ディスク提出手数料","A7010"]
["優先権主張に関する手数料","優先権主張に関する手数料","現地代理人への指示（指令応答などの)手数料","－－－－－－－－－－－－－－－","方式補正、手続補正、追完に関する手数料","情報開示陳述書(IDS)に関する手数料",null,"請求項加算手数料","A7011"]
["寄託に関する費用(実費)","寄託に関する費用(実費)","－－－－－－－－－－－－－－－","請求項作成手数料","上申書提出手数料","－－－－－－－－－－－－－－－",null,"明細書、図面加算手数料","A7012"]
["寄託に関する費用(手数料)","寄託に関する費用(手数料)","優先権証明願(印紙代)","明細書作成手数料","技術検討料","優先権証明願(印紙代)",null,"ページ加算手数料","A7013"]
["新規性喪失例外に関する手数料","新規性喪失例外に関する手数料","優先権主張に関する手数料","図面作成手数料","－－－－－－－－－－－－－－－","優先権主張に関する手数料",null,"割増、加算等","A7014"]
["方式補正、手続補正、追完に関する手数料","方式補正、手続補正、追完に関する手数料","寄託に関する費用(実費)","要約書作成手数料","公証、認証等（実費)","寄託に関する費用(実費)",null,"予備審査請求（印紙代)","B1001"]
["上申書提出手数料","上申書提出手数料","寄託に関する費用(手数料)","配列表作成手数料","公証、認証等の事務手数料","寄託に関する費用(手数料)",null,"予備審査の追加手数料(印紙代)","B1002"]
["技術検討料","技術検討料","新規性喪失例外に関する手数料","割増、加算等","－－－－－－－－－－－－－－－","新規性喪失例外に関する手数料",null,"取扱手数料(WIPO)","B1003"]
["－－－－－－－－－－－－－－－","－－－－－－－－－－－－－－－","方式補正、手続補正、追完に関する手数料","－－－－－－－－－－－－－－－","印書代、タイプ代(電子化手数料)","方式補正、手続補正、追完に関する手数料",null,"文献の写しの請求費用(印紙代)","B1004"]
["公証、認証等（実費)","公証、認証等（実費)","上申書提出手数料","優先権証明願(印紙代)","書類作成、調整費用","上申書提出手数料",null,"１９条補正に関する手数料","B7001"]
["公証、認証等の事務手数料","公証、認証等の事務手数料","技術検討料","優先権主張に関する手数料","事務手数料(管理料、報告料)","技術検討料",null,"３４条補正に関する手数料","B7002"]
["－－－－－－－－－－－－－－－","－－－－－－－－－－－－－－－","－－－－－－－－－－－－－－－","寄託に関する費用(実費)","事務的経費(コピー、郵送料、通信費、振込手数料)","－－－－－－－－－－－－－－－",null,"答弁書作成手数料","B7003"]
["印書代、タイプ代(電子化手数料)","印書代、タイプ代(電子化手数料)","公証、認証等（実費)","寄託に関する費用(手数料)","－－－－－－－－－－－－－－－","公証、認証等（実費)",null,"国際調査報告対応費用","B7004"]
["書類作成、調整費用","書類作成、調整費用","公証、認証等の事務手数料","新規性喪失例外に関する手数料","軽減申請手数料","公証、認証等の事務手数料",null,"国際予備審査手数料","B7005"]
["電子出願による手数料","電子出願による手数料","譲渡、宣誓書、委任状提出に関する費用","方式補正、手続補正、追完に関する手数料","減額、値引き、ディスカウント","譲渡、宣誓書、委任状提出に関する費用",null,"陳述書の提出に関する手数料","B7006"]
["事務手数料(管理料、報告料)","事務手数料(管理料、報告料)","－－－－－－－－－－－－－－－","上申書提出手数料","消費税","－－－－－－－－－－－－－－－",null,"国内移行手数料(印紙代)","C0001"]
["事務的経費(コピー、郵送料、通信費、振込手数料)","事務的経費(コピー、郵送料、通信費、振込手数料)","印書代、タイプ代(電子化手数料)","技術検討料","放棄手数料","印書代、タイプ代(電子化手数料)",null,"国内移行手数料","C7001"]
["－－－－－－－－－－－－－－－","－－－－－－－－－－－－－－－","書類作成、調整費用","－－－－－－－－－－－－－－－","その他","書類作成、調整費用",null,"翻訳(英語：上限100万円)","C7003"]
["軽減申請手数料","軽減申請手数料","電子出願による手数料","公証、認証等（実費)",null,"電子出願による手数料",null,"翻訳(英語以外：上限100万円)","C7004"]
["減額、値引き、ディスカウント","磁気ディスク提出手数料","事務手数料(管理料、報告料)","公証、認証等の事務手数料","","事務手数料(管理料、報告料)",null,"審査請求料(印紙代)","D1001"]
["消費税","－－－－－－－－－－－－－－－","事務的経費(コピー、郵送料、通信費、振込手数料)","譲渡、宣誓書、委任状提出に関する費用","","事務的経費(コピー、郵送料、通信費、振込手数料)",null,"維持年金納付管理手数料","D7006"]
["放棄手数料","減額、値引き、ディスカウント","－－－－－－－－－－－－－－－","－－－－－－－－－－－－－－－","","－－－－－－－－－－－－－－－",null,"－","D7001"]
["その他","消費税","軽減申請手数料","印書代、タイプ代(電子化手数料)","","軽減申請手数料",null,"審査請求、管理(手数料)","D7002"]
[null,"放棄手数料","減額、値引き、ディスカウント","書類作成、調整費用",null,"減額、値引き、ディスカウント",null,"意見書、補正書作成費用","D7003"]
[null,"その他","消費税","電子出願による手数料",null,null,null,"請求項加算手数料","D7005"]
[null,null,"放棄手数料","事務手数料(管理料、報告料)",null,"放棄手数料",null,"特許料納付（年金)(印紙代)","E1001"]
[null,null,"その他","事務的経費(コピー、郵送料、通信費、振込手数料)","","その他",null,"特許料納付（年金)手数料","E7001"]
[null,null,null,"－－－－－－－－－－－－－－－","",null,null,"出願手数料(印紙代)","C0001"]
[null,null,null,"軽減申請手数料","",null,null,"－","F7001"]
[null,null,null,"減額、値引き、ディスカウント","",null,null,"出願手数料(各国特許庁費用)","G1001"]
[null,null,null,"消費税",null,null,null,"出願手数料","G7001"]
[null,null,null,"放棄手数料",null,null,null,"消費税","M0001"]
["",null,null,"その他",null,null,null,"事務的経費(コピー、郵送料、通信費、振込手数料)","M7001"]
["",null,null,null,null,null,null,"事務手数料(管理料、報告料)","M7002"]
[null,null,null,null,null,null,null,"印書代、タイプ代(電子化手数料)","M7007"]
[null,null,null,null,null,null,null,"電子化手数料","M7008"]
[null,null,null,null,null,null,null,"書類作成、調整費用","M7010"]
[null,null,null,null,null,null,null,"軽減申請手数料","M7011"]
[null,null,null,null,null,null,null,"新規性喪失例外に関する手数料","M7012"]
[null,null,null,null,null,null,null,"各種印紙代","O1001"]
[null,null,null,null,null,null,null,"公証、認証等（実費)","O1002"]
[null,null,null,null,null,null,null,"寄託に関する費用(実費)","O1013"]
[null,null,null,null,null,null,null,"－","O1100"]
[null,null,null,null,null,null,null,"－","O1101"]
[null,null,null,null,null,null,null,"現地代理人費用","O1102"]
[null,null,null,null,null,null,null,"－","O7001"]
[null,null,null,null,null,null,null,"上申書提出手数料","O7002"]
[null,null,null,null,null,null,null,"公証、認証等の事務手数料","O7003"]
[null,null,null,null,null,null,null,"情報開示陳述書(IDS)に関する手数料","O7004"]
[null,null,null,null,null,null,null,"譲渡、宣誓書、委任状提出に関する費用","O7006"]
[null,null,null,null,null,null,null,"－","O7007"]
[null,null,null,null,null,null,null,"技術検討料","O7008"]
[null,null,null,null,null,null,null,"方式補正、手続補正、追完に関する手数料","O7009"]
[null,null,null,null,null,null,null,"寄託に関する費用(手数料)","O7013"]
[null,null,null,null,null,null,null,"現地代理人への指示（指令応答などの)手数料","O7100"]
[null,null,null,null,null,null,null,"－－－－－－－－－－－－－－－","X9999"]
[null,null,null,null,null,null,null,"-","Z0001"]
[null,null,null,null,null,null,null,"放棄手数料","M7003"]
[null,null,null,null,null,null,null,"その他","Z9999"]
[null,null,null,null,null,null,null,"減額、値引き、ディスカウント","M9999"]
[null,null,null,null,null,null,null,"-","X9999"]